fUSD/lending_fUSD_20240518
["ID","MTS","AMOUNT","RATE_DAILY","PERIOD"]
[327389683,1716040236775,-500.0,0.00027397,2]
[327389684,1716040236786,-500.0,0.00027397,2]
[327389685,1716040236797,-1098.65,0.00027397,2]
[327389686,1716040236808,-500.0,0.00027397,2]
[327389687,1716040236819,-500.0,0.00027397,2]
[327389688,1716040236830,-519.27,0.00027397,2]
[327389689,1716040236841,-670.06,0.00027397,2]
[327389690,1716040236852,-500.0,0.00027397,2]
[327389691,1716040236865,-20000.0,0.00027397,2]
[327389692,1716040236876,-500.0,0.00027397,2]
[327389693,1716040236888,-642.1022745,0.00027397,2]
[327389694,1716040236900,-500.0,0.00027397,2]
[327389695,1716040236911,-526.97,0.00027397,2]
[327389696,1716040236922,-500.0,0.00027397,2]
[327389697,1716040236933,-1180.45,0.00027397,2]
[327389698,1716040236946,-349.36,0.00027397,2]
[327389699,1716040236957,-2140.28,0.00027397,2]
[327389700,1716040236970,-500.0,0.00027397,2]
[327389701,1716040236980,-500.0,0.00027397,2]
[327389702,1716040236991,-1792.29,0.00027397,2]
[327389703,1716040237003,-500.0,0.00027397,2]
[327389704,1716040237014,-500.0,0.00027397,2]
[327389705,1716040237025,-754.09,0.00027397,2]
[327389706,1716040237036,-500.0,0.00027397,2]
[327389707,1716040237046,-514.97575938,0.00027397,2]
[327389708,1716040237057,-608.25090808,0.00027397,2]
[327389709,1716040237068,-1739.94,0.00027397,2]
[327389710,1716040237079,-500.0,0.00027397,2]
[327389711,1716040237090,-500.0,0.00027397,2]
[327389712,1716040237101,-500.0,0.00027397,2]
[327389713,1716040237112,-500.0,0.00027397,2]
[327389714,1716040237122,-500.0,0.00027397,2]
[327389715,1716040237133,-195.61458435,0.00027397,2]
[327389716,1716040237143,-2203.95,0.00027397,2]
[327389717,1716040237153,-500.0,0.00027397,2]
[327389718,1716040237164,-500.0,0.00027397,2]
[327389719,1716040237175,-500.0,0.00027397,2]
[327389720,1716040237185,-500.0,0.00027397,2]
[327389721,1716040237196,-500.0,0.00027397,2]
[327389722,1716040237206,-500.0,0.00027397,2]
[327389723,1716040237218,-500.0,0.00027397,2]
[327389724,1716040237228,-500.0,0.00027397,2]
[327389725,1716040237239,-508.34674317,0.00027397,2]
[327389726,1716040237250,-2008.84512784,0.00027397,2]
[327389727,1716040237260,-500.0,0.00027397,2]
[327389728,1716040237271,-500.0,0.00027397,2]
[327389729,1716040237282,-500.0,0.00027397,2]
[327389730,1716040237292,-500.0,0.00027397,2]
[327389731,1716040237303,-500.0,0.00027397,2]
[327389732,1716040237313,-626.93,0.00027397,2]
[327389733,1716040237324,-500.0,0.00027397,2]
[327389734,1716040237335,-500.0,0.00027397,2]
[327389735,1716040237345,-500.0,0.00027397,2]
[327389736,1716040237356,-514.0886877,0.00027397,2]
[327389737,1716040237366,-500.0,0.00027397,2]
[327389738,1716040237377,-450.28585582,0.00027397,2]
[327389739,1716040237387,-504.38589116,0.00027397,2]
[327389740,1716040237398,-500.0,0.00027397,2]
[327389741,1716040237409,-500.0,0.00027397,2]
[327389742,1716040237420,-2589.11,0.00027397,2]
[327389743,1716040237431,-2196.61,0.00027397,2]
[327389744,1716040237442,-500.0,0.00027397,2]
[327389745,1716040237452,-500.0,0.00027397,2]
[327389746,1716040237463,-843.12,0.00027397,2]
[327389747,1716040237474,-515.64548265,0.00027397,2]
[327389748,1716040237484,-334.61325478,0.00027397,2]
[327389749,1716040237494,-500.0,0.00027397,2]
[327389750,1716040237504,-1927.98,0.00027397,2]
[327389751,1716040237515,-500.0,0.00027397,2]
[327389752,1716040237525,-500.0,0.00027397,2]
[327389753,1716040237535,-500.0,0.00027397,2]
[327389754,1716040237546,-500.0,0.00027397,2]
[327389755,1716040237556,-500.0,0.00027397,2]
[327389756,1716040237567,-500.0,0.00027397,2]
[327389757,1716040237577,-500.0,0.00027397,2]
[327389758,1716040237587,-500.0,0.00027397,2]
[327389759,1716040237597,-313.15633728,0.00027397,2]
[327389760,1716040237608,-500.0,0.00027397,2]
[327389761,1716040237619,-2339.68,0.00027397,2]
[327389762,1716040237629,-594.7390456,0.00027397,2]
[327389763,1716040237639,-500.0,0.00027397,2]
[327389764,1716040237650,-500.0,0.00027397,2]
[327389765,1716040237660,-500.0,0.00027397,2]
[327389766,1716040237671,-500.0,0.00027397,2]
[327389767,1716040237681,-500.0,0.00027397,2]
[327389768,1716040237691,-500.0,0.00027397,2]
[327389769,1716040237701,-952.74,0.00027397,2]
[327389770,1716040237713,-500.0,0.00027397,2]
[327389771,1716040237724,-500.0,0.00027397,2]
[327389772,1716040237734,-500.0,0.00027397,2]
[327389773,1716040237745,-500.0,0.00027397,2]
[327389774,1716040237755,-700.22,0.00027397,2]
[327389775,1716040237766,-500.0,0.00027397,2]
[327389776,1716040237776,-500.0,0.00027397,2]
[327389777,1716040237787,-500.0,0.00027397,2]
[327389778,1716040237798,-500.0,0.00027397,2]
[327389779,1716040237809,-404.3235093,0.00027397,2]
[327389780,1716040237819,-500.0,0.00027397,2]
[327389781,1716040237829,-500.0,0.00027397,2]
[327389782,1716040237840,-500.0,0.00027397,2]
[327389783,1716040237851,-1204.38,0.00027397,2]
[327389785,1716040237865,-500.0,0.00027397,2]
[327389787,1716040237876,-500.0,0.00027397,2]
[327389788,1716040237887,-578.65,0.00027397,2]
[327389789,1716040237898,-441.05969388,0.00027397,2]
[327389791,1716040237910,-500.0,0.00027397,2]
[327389793,1716040237921,-1353.98,0.00027397,2]
[327389796,1716040237932,-500.0,0.00027397,2]
[327389797,1716040237945,-500.0,0.00027397,2]
[327389798,1716040237956,-585.28081577,0.00027397,2]
[327389803,1716040237967,-500.0,0.00027397,2]
[327389804,1716040238283,-500.0,0.00027397,2]
[327389805,1716040238304,-500.0,0.00027397,2]
[327389806,1716040238320,-500.0,0.00027397,2]
[327389807,1716040238330,-500.0,0.00027397,2]
[327389808,1716040238339,-500.0,0.00027397,2]
[327389809,1716040238349,-500.0,0.00027397,2]
[327389810,1716040238359,-180.46,0.00027397,2]
[327389811,1716040238368,-410.03682825,0.00027397,2]
[327389812,1716040238377,-500.0,0.00027397,2]
[327389813,1716040238387,-500.0,0.00027397,2]
[327389814,1716040238396,-500.0,0.00027397,2]
[327389815,1716040238406,-566.23071308,0.00027397,2]
[327389816,1716040238415,-500.0,0.00027397,2]
[327389817,1716040238425,-500.0,0.00027397,2]
[327389818,1716040238434,-500.0,0.00027397,2]
[327389819,1716040238443,-500.0,0.00027397,2]
[327389820,1716040238452,-500.0,0.00027397,2]
[327389821,1716040238462,-500.0,0.00027397,2]
[327389822,1716040238471,-248.67288889,0.00027397,2]
[327389823,1716040238480,-500.0,0.00027397,2]
[327389824,1716040238489,-500.0,0.00027397,2]
[327389825,1716040238500,-500.0,0.00027397,2]
[327389826,1716040238509,-1233.38,0.00027397,2]
[327389827,1716040238519,-500.0,0.00027397,2]
[327389828,1716040238528,-500.0,0.00027397,2]
[327389829,1716040238537,-194.91950471,0.00027397,2]
[327389830,1716040238547,-647.86,0.00027397,2]
[327389831,1716040238556,-500.0,0.00027397,2]
[327389832,1716040238565,-500.0,0.00027397,2]
[327389833,1716040238574,-527.46159545,0.00027397,2]
[327389834,1716040238584,-500.0,0.00027397,2]
[327389835,1716040238593,-500.0,0.00027397,2]
[327389836,1716040238603,-500.0,0.00027397,2]
[327389837,1716040238612,-500.0,0.00027397,2]
[327389839,1716040238621,-3001.93,0.00027397,2]
[327389841,1716040238631,-500.0,0.00027397,2]
[327389843,1716040238640,-500.0,0.00027397,2]
[327389845,1716040238648,-500.0,0.00027397,2]
[327389847,1716040238658,-500.0,0.00027397,2]
[327389849,1716040238667,-500.0,0.00027397,2]
[327389850,1716040238676,-513.57201136,0.00027397,2]
[327389852,1716040238686,-507.35692379,0.00027397,2]
[327389854,1716040238695,-1093.23,0.00027397,2]
[327389856,1716040238704,-500.0,0.00027397,2]
[327389858,1716040238714,-500.0,0.00027397,2]
[327389860,1716040238724,-500.0,0.00027397,2]
[327389862,1716040238733,-500.0,0.00027397,2]
[327389864,1716040238742,-515.53855746,0.00027397,2]
[327389865,1716040238751,-500.0,0.00027397,2]
[327389867,1716040238761,-544.14,0.00027397,2]
[327389869,1716040238771,-500.0,0.00027397,2]
[327389870,1716040238780,-500.0,0.00027397,2]
[327389872,1716040238790,-153.69967795,0.00027397,2]
[327389874,1716040238799,-500.0,0.00027397,2]
[327389876,1716040238809,-562.54120835,0.00027397,2]
[327389877,1716040238818,-500.0,0.00027397,2]
[327389879,1716040238827,-500.0,0.00027397,2]
[327389881,1716040238836,-365.87237198,0.00027397,2]
[327389882,1716040238845,-475.88370909,0.00027397,2]
[327389884,1716040238857,-1402.06,0.00027397,2]
[327389886,1716040238866,-959.13,0.00027397,2]
[327389887,1716040238875,-500.0,0.00027397,2]
[327389889,1716040238885,-500.0,0.00027397,2]
[327389890,1716040238894,-506.90831086,0.00027397,2]
[327389892,1716040238906,-500.0,0.00027397,2]
[327389894,1716040238915,-500.0,0.00027397,2]
[327389896,1716040238924,-509.06492272,0.00027397,2]
[327389897,1716040238935,-500.0,0.00027397,2]
[327389899,1716040238944,-500.0,0.00027397,2]
[327389901,1716040238954,-511.76540101,0.00027397,2]
[327389902,1716040238964,-500.0,0.00027397,2]
[327389904,1716040238973,-500.0,0.00027397,2]
[327389906,1716040238982,-500.0,0.00027397,2]
[327389908,1716040238991,-500.0,0.00027397,2]
[327389910,1716040239000,-500.0,0.00027397,2]
[327389911,1716040239009,-500.0,0.00027397,2]
[327389913,1716040239019,-500.0,0.00027397,2]
[327389915,1716040239029,-468.93,0.00027397,2]
[327389917,1716040239039,-500.0,0.00027397,2]
[327389918,1716040239048,-544.67935251,0.00027397,2]
[327389920,1716040239058,-500.0,0.00027397,2]
[327389921,1716040239067,-500.0,0.00027397,2]
[327389923,1716040239076,-500.0,0.00027397,2]
[327389925,1716040239086,-500.0,0.00027397,2]
[327389927,1716040239096,-500.0,0.00027397,2]
[327389929,1716040239105,-437.98623945,0.00027397,2]
[327389930,1716040239115,-3017.04,0.00027397,2]
[327389932,1716040239125,-500.0,0.00027397,2]
[327389934,1716040239135,-533.05,0.00027397,2]
[327389936,1716040239144,-500.0,0.00027397,2]
[327389937,1716040239153,-500.0,0.00027397,2]
[327389939,1716040239163,-500.0,0.00027397,2]
[327389941,1716040239172,-500.0,0.00027397,2]
[327389943,1716040239182,-500.0,0.00027397,2]
[327389944,1716040239190,-1788.12,0.00027397,2]
[327389946,1716040239200,-500.0,0.00027397,2]
[327389948,1716040239209,-500.0,0.00027397,2]
[327389950,1716040239220,-252.53650958,0.00027397,2]
[327389952,1716040239228,-500.0,0.00027397,2]
[327389953,1716040239238,-500.0,0.00027397,2]
[327389955,1716040239247,-500.0,0.00027397,2]
[327389957,1716040239256,-980.4,0.00027397,2]
[327389959,1716040239266,-544.03365968,0.00027397,2]
[327389961,1716040239275,-500.0,0.00027397,2]
[327389962,1716040239284,-500.0,0.00027397,2]
[327389964,1716040239294,-500.0,0.00027397,2]
[327389966,1716040239304,-714.06,0.00027397,2]
[327389968,1716040239313,-680.93,0.00027397,2]
[327389970,1716040239322,-500.0,0.00027397,2]
[327389971,1716040239332,-500.0,0.00027397,2]
[327389973,1716040239341,-500.0,0.00027397,2]
[327389975,1716040239351,-500.0,0.00027397,2]
[327389977,1716040239360,-915.26,0.00027397,2]
[327389978,1716040239369,-527.46692246,0.00027397,2]
[327389980,1716040239378,-500.0,0.00027397,2]
[327389982,1716040239388,-500.0,0.00027397,2]
[327389984,1716040239397,-500.0,0.00027397,2]
[327389986,1716040239407,-500.0,0.00027397,2]
[327389987,1716040239416,-500.0,0.00027397,2]
[327389989,1716040239425,-150.0,0.00027397,2]
[327389991,1716040239434,-500.0,0.00027397,2]
[327389993,1716040239443,-2281.2,0.00027397,2]
[327389995,1716040239452,-500.0,0.00027397,2]
[327389996,1716040239461,-500.0,0.00027397,2]
[327389998,1716040239471,-500.0,0.00027397,2]
[327390000,1716040239482,-500.0,0.00027397,2]
[327390002,1716040239491,-500.0,0.00027397,2]
[327390004,1716040239500,-969.27,0.00027397,2]
[327390005,1716040239509,-500.0,0.00027397,2]
[327390007,1716040239520,-500.0,0.00027397,2]
[327390009,1716040239529,-500.0,0.00027397,2]
[327390011,1716040239538,-5000.0,0.00027397,2]
[327390013,1716040239547,-1067.09,0.00027397,2]
[327390015,1716040239556,-1797.23,0.00027397,2]
[327390016,1716040239565,-539.89269931,0.00027397,2]
[327390018,1716040239574,-500.0,0.00027397,2]
[327390020,1716040239583,-737.86,0.00027397,2]
[327390022,1716040239593,-1506.83,0.00027397,2]
[327390024,1716040239603,-500.0,0.00027397,2]
[327390025,1716040239612,-500.0,0.00027397,2]
[327390027,1716040239622,-625.58,0.00027397,2]
[327390029,1716040239631,-500.0,0.00027397,2]
[327390031,1716040239641,-500.0,0.00027397,2]
[327390033,1716040239650,-500.0,0.00027397,2]
[327390034,1716040239660,-500.0,0.00027397,2]
[327390036,1716040239670,-500.0,0.00027397,2]
[327390038,1716040239680,-500.0,0.00027397,2]
[327390040,1716040239689,-500.0,0.00027397,2]
[327390041,1716040239699,-527.74380906,0.00027397,2]
[327390044,1716040239708,-500.0,0.00027397,2]
[327390047,1716040239719,-500.0,0.00027397,2]
[327390050,1716040239729,-500.0,0.00027397,2]
[327390053,1716040239739,-527.93700332,0.00027397,2]
[327390055,1716040239748,-3336.88,0.00027397,2]
[327390057,1716040239758,-500.0,0.00027397,2]
[327390059,1716040239767,-6913.64,0.00027397,2]
[327390061,1716040239776,-709.55,0.00027397,2]
[327390062,1716040239786,-794.08,0.00027397,2]
[327390064,1716040239795,-535.9447385,0.00027397,2]
[327390066,1716040239805,-500.0,0.00027397,2]
[327390067,1716040239815,-2267.04,0.00027397,2]
[327390068,1716040239824,-500.0,0.00027397,2]
[327390069,1716040239834,-500.0,0.00027397,2]
[327390070,1716040239844,-5959.23,0.00027397,2]
[327390071,1716040239853,-500.0,0.00027397,2]
[327390072,1716040239867,-500.0,0.00027397,2]
[327390073,1716040239877,-500.0,0.00027397,2]
[327390074,1716040239886,-500.0,0.00027397,2]
[327390075,1716040239895,-586.84,0.00027397,2]
[327390076,1716040239906,-500.0,0.00027397,2]
[327390077,1716040239915,-840.47,0.00027397,2]
[327390078,1716040239924,-574.13218329,0.00027397,2]
[327390079,1716040239933,-2092.24,0.00027397,2]
[327390080,1716040239944,-500.0,0.00027397,2]
[327390081,1716040239953,-500.0,0.00027397,2]
[327390082,1716040239963,-509.49668385,0.00027397,2]
[327390083,1716040239972,-535.1063314,0.00027397,2]
[327390085,1716040239982,-500.0,0.00027397,2]
[327390087,1716040239991,-500.0,0.00027397,2]
[327390089,1716040240000,-500.0,0.00027397,2]
[327390091,1716040240010,-500.0,0.00027397,2]
[327390094,1716040240019,-594.07,0.00027397,2]
[327390097,1716040240029,-500.0,0.00027397,2]
[327390100,1716040240040,-500.0,0.00027397,2]
[327390103,1716040240050,-500.0,0.00027397,2]
[327390106,1716040240060,-500.0,0.00027397,2]
[327390108,1716040240069,-732.23,0.00027397,2]
[327390112,1716040240079,-500.0,0.00027397,2]
[327390115,1716040240089,-500.0,0.00027397,2]
[327390118,1716040240099,-500.0,0.00027397,2]
[327390121,1716040240108,-500.0,0.00027397,2]
[327390124,1716040240117,-500.0,0.00027397,2]
[327390128,1716040240127,-500.0,0.00027397,2]
[327390130,1716040240136,-500.0,0.00027397,2]
[327390134,1716040240146,-500.0,0.00027397,2]
[327390135,1716040240155,-500.0,0.00027397,2]
[327390137,1716040240164,-579.55527034,0.00027397,2]
[327390140,1716040240174,-542.76119183,0.00027397,2]
[327390142,1716040240184,-735.33,0.00027397,2]
[327390144,1716040240194,-500.0,0.00027397,2]
[327390146,1716040240203,-500.0,0.00027397,2]
[327390147,1716040240213,-500.0,0.00027397,2]
[327390149,1716040240223,-500.0,0.00027397,2]
[327390151,1716040240232,-8945.82,0.00027397,2]
[327390153,1716040240242,-2493.68,0.00027397,2]
[327390155,1716040240252,-500.0,0.00027397,2]
[327390157,1716040240261,-500.0,0.00027397,2]
[327390160,1716040240271,-500.0,0.00027397,2]
[327390162,1716040240281,-370.95924365,0.00027397,2]
[327390163,1716040240290,-500.0,0.00027397,2]
[327390165,1716040240300,-500.0,0.00027397,2]
[327390167,1716040240310,-500.0,0.00027397,2]
[327390169,1716040240320,-500.0,0.00027397,2]
[327390171,1716040240329,-500.0,0.00027397,2]
[327390173,1716040240339,-1410.43,0.00027397,2]
[327390176,1716040240349,-500.0,0.00027397,2]
[327390178,1716040240358,-500.0,0.00027397,2]
[327390179,1716040240367,-500.0,0.00027397,2]
[327390182,1716040240377,-156.81633385,0.00027397,2]
[327390183,1716040240387,-1603.71,0.00027397,2]
[327390185,1716040240396,-500.0,0.00027397,2]
[327390188,1716040240406,-500.0,0.00027397,2]
[327390190,1716040240415,-500.0,0.00027397,2]
[327390191,1716040240425,-500.0,0.00027397,2]
[327390193,1716040240434,-1234.82,0.00027397,2]
[327390196,1716040240444,-500.0,0.00027397,2]
[327390197,1716040240454,-500.0,0.00027397,2]
[327390199,1716040240464,-500.0,0.00027397,2]
[327390201,1716040240473,-500.0,0.00027397,2]
[327390203,1716040240483,-500.0,0.00027397,2]
[327390205,1716040240493,-500.0,0.00027397,2]
[327390207,1716040240503,-500.0,0.00027397,2]
[327390210,1716040240513,-500.0,0.00027397,2]
[327390212,1716040240523,-500.0,0.00027397,2]
[327390214,1716040240532,-500.0,0.00027397,2]
[327390216,1716040240542,-500.0,0.00027397,2]
[327390218,1716040240552,-964.54,0.00027397,2]
[327390220,1716040240561,-500.0,0.00027397,2]
[327390221,1716040240571,-906.95,0.00027397,2]
[327390224,1716040240581,-500.0,0.00027397,2]
[327390226,1716040240591,-500.0,0.00027397,2]
[327390227,1716040240601,-2869.47,0.00027397,2]
[327390229,1716040240610,-643.98,0.00027397,2]
[327390231,1716040240620,-500.0,0.00027397,2]
[327390233,1716040240629,-500.0,0.00027397,2]
[327390235,1716040240639,-500.0,0.00027397,2]
[327390237,1716040240648,-1338.53,0.00027397,2]
[327390239,1716040240658,-739.56,0.00027397,2]
[327390241,1716040240668,-500.0,0.00027397,2]
[327390243,1716040240678,-500.0,0.00027397,2]
[327390245,1716040240688,-500.0,0.00027397,2]
[327390247,1716040240698,-500.0,0.00027397,2]
[327390249,1716040240708,-515.66723902,0.00027397,2]
[327390251,1716040240719,-500.0,0.00027397,2]
[327390253,1716040240729,-561.33,0.00027397,2]
[327390255,1716040240739,-500.0,0.00027397,2]
[327390257,1716040240748,-500.0,0.00027397,2]
[327390259,1716040240759,-500.0,0.00027397,2]
[327390261,1716040240768,-702.2,0.00027397,2]
[327390263,1716040240779,-1490.89,0.00027397,2]
[327390265,1716040240788,-1386.7,0.00027397,2]
[327390267,1716040240798,-500.0,0.00027397,2]
[327390269,1716040240808,-500.0,0.00027397,2]
[327390271,1716040240818,-194.06282552,0.00027397,2]
[327390273,1716040240827,-500.0,0.00027397,2]
[327390275,1716040240837,-775.1,0.00027397,2]
[327390277,1716040240847,-935.89,0.00027397,2]
[327390280,1716040240864,-545.32,0.00027397,2]
[327390281,1716040240873,-500.0,0.00027397,2]
[327390283,1716040240883,-500.0,0.00027397,2]
[327390286,1716040240892,-500.0,0.00027397,2]
[327390287,1716040240902,-507.79237623,0.00027397,2]
[327390288,1716040240912,-561.56,0.00027397,2]
[327390289,1716040240921,-500.0,0.00027397,2]
[327390290,1716040240931,-500.0,0.00027397,2]
[327390291,1716040240943,-500.0,0.00027397,2]
[327390292,1716040240954,-500.0,0.00027397,2]
[327390294,1716040240965,-500.0,0.00027397,2]
[327390296,1716040240975,-511.67048495,0.00027397,2]
[327390298,1716040240984,-500.0,0.00027397,2]
[327390299,1716040240994,-500.0,0.00027397,2]
[327390300,1716040241004,-500.0,0.00027397,2]
[327390301,1716040241014,-500.0,0.00027397,2]
[327390302,1716040241024,-500.0,0.00027397,2]
[327390303,1716040241034,-619.78,0.00027397,2]
[327390304,1716040241044,-500.0,0.00027397,2]
[327390305,1716040241053,-500.0,0.00027397,2]
[327390306,1716040241064,-621.39,0.00027397,2]
[327390307,1716040241074,-519.06768082,0.00027397,2]
[327390308,1716040241091,-500.0,0.00027397,2]
[327390309,1716040241113,-585.77,0.00027397,2]
[327390310,1716040241134,-3560.8,0.00027397,2]
[327390311,1716040241153,-3010.58,0.00027397,2]
[327390313,1716040241173,-500.0,0.00027397,2]
[327390315,1716040241195,-500.0,0.00027397,2]
[327390316,1716040241216,-500.0,0.00027397,2]
[327390318,1716040241239,-500.0,0.00027397,2]
[327390321,1716040241263,-524.75751573,0.00027397,2]
[327390322,1716040241285,-599.07,0.00027397,2]
[327390324,1716040241306,-201.21103027,0.00027397,2]
[327390326,1716040241316,-500.0,0.00027397,2]
[327390329,1716040241325,-500.0,0.00027397,2]
[327390331,1716040241335,-500.0,0.00027397,2]
[327390333,1716040241345,-3063.61,0.00027397,2]
[327390335,1716040241354,-500.0,0.00027397,2]
[327390337,1716040241364,-447.20142354,0.00027397,2]
[327390339,1716040241373,-653.42,0.00027397,2]
[327390341,1716040241383,-545.71984898,0.00027397,2]
[327390343,1716040241392,-814.87,0.00027397,2]
[327390345,1716040241402,-698.86,0.00027397,2]
[327390347,1716040241411,-1099.41,0.00027397,2]
[327390349,1716040241420,-500.0,0.00027397,2]
[327390351,1716040241430,-500.0,0.00027397,2]
[327390353,1716040241439,-500.0,0.00027397,2]
[327390355,1716040241448,-1201.24,0.00027397,2]
[327390356,1716040241458,-500.0,0.00027397,2]
[327390359,1716040241469,-519.26467345,0.00027397,2]
[327390361,1716040241478,-500.0,0.00027397,2]
[327390363,1716040241488,-622.78,0.00027397,2]
[327390364,1716040241497,-500.0,0.00027397,2]
[327390367,1716040241507,-500.0,0.00027397,2]
[327390368,1716040241516,-500.0,0.00027397,2]
[327390371,1716040241527,-254.31693174,0.00027397,2]
[327390373,1716040241536,-528.50208987,0.00027397,2]
[327390375,1716040241545,-500.0,0.00027397,2]
[327390377,1716040241555,-500.0,0.00027397,2]
[327390379,1716040241565,-500.0,0.00027397,2]
[327390381,1716040241575,-419.39337365,0.00027397,2]
[327390383,1716040241585,-549.66518602,0.00027397,2]
[327390385,1716040241595,-674.85,0.00027397,2]
[327390387,1716040241604,-590.6,0.00027397,2]
[327390389,1716040241614,-656.56,0.00027397,2]
[327390391,1716040241623,-500.10171731,0.00027397,2]
[327390393,1716040241633,-500.0,0.00027397,2]
[327390408,1716040241774,-500.0,0.00027397,2]
[327390409,1716040241812,-500.0,0.00027397,2]
[327390410,1716040241823,-537.80333696,0.00027397,2]
[327390411,1716040241832,-503.30290785,0.00027397,2]
[327390412,1716040241842,-783.59,0.00027397,2]
[327390413,1716040241852,-1179.24,0.00027397,2]
[327390414,1716040241865,-874.12,0.00027397,2]
[327390415,1716040241875,-548.38659651,0.00027397,2]
[327390416,1716040241885,-500.0,0.00027397,2]
[327390417,1716040241895,-500.0,0.00027397,2]
[327390418,1716040241905,-501.94909851,0.00027397,2]
[327390419,1716040241914,-500.0,0.00027397,2]
[327390420,1716040241924,-558.78,0.00027397,2]
[327390421,1716040241934,-500.0,0.00027397,2]
[327390422,1716040241946,-507.47138315,0.00027397,2]
[327390423,1716040241956,-2108.16,0.00027397,2]
[327390424,1716040241967,-500.0,0.00027397,2]
[327390425,1716040241976,-1661.91,0.00027397,2]
[327390426,1716040241986,-666.13,0.00027397,2]
[327390427,1716040241995,-2781.87,0.00027397,2]
[327390428,1716040242005,-558.85793712,0.00027397,2]
[327390429,1716040242015,-519.36808383,0.00027397,2]
[327390430,1716040242025,-280.9517269,0.00027397,2]
[327390431,1716040242035,-500.0,0.00027397,2]
[327390432,1716040242044,-1207.31,0.00027397,2]
[327390433,1716040242053,-893.42,0.00027397,2]
[327390434,1716040242063,-500.0,0.00027397,2]
[327390435,1716040242072,-840.57,0.00027397,2]
[327390436,1716040242082,-233.63699011,0.00027397,2]
[327390437,1716040242091,-1041.69,0.00027397,2]
[327390438,1716040242100,-501.75725544,0.00027397,2]
[327390439,1716040242109,-1214.32,0.00027397,2]
[327390440,1716040242119,-500.0,0.00027397,2]
[327390441,1716040242128,-1712.9,0.00027397,2]
[327390442,1716040242137,-500.0,0.00027397,2]
[327390443,1716040242147,-500.0,0.00027397,2]
[327390444,1716040242156,-500.0,0.00027397,2]
[327390445,1716040242165,-500.0,0.00027397,2]
[327390446,1716040242174,-2408.0,0.00027397,2]
[327390447,1716040242183,-1126.37,0.00027397,2]
[327390448,1716040242192,-614.77,0.00027397,2]
[327390449,1716040242202,-500.0,0.00027397,2]
[327390450,1716040242211,-500.0,0.00027397,2]
[327390451,1716040242222,-500.76,0.00027397,2]
[327390452,1716040242231,-500.0,0.00027397,2]
[327390453,1716040242240,-500.0,0.00027397,2]
[327390454,1716040242251,-2250.78,0.00027397,2]
[327390455,1716040242260,-500.0,0.00027397,2]
[327390456,1716040242269,-620.98,0.00027397,2]
[327390457,1716040242278,-500.0,0.00027397,2]
[327390458,1716040242287,-500.0,0.00027397,2]
[327390459,1716040242296,-500.0,0.00027397,2]
[327390460,1716040242305,-500.0,0.00027397,2]
[327390461,1716040242314,-500.0,0.00027397,2]
[327390462,1716040242323,-500.0,0.00027397,2]